[Event "Mentese WGM 2019"]
[Site "Mentese"]
[Date "2019.06.24"]
[Round "2.4"]
[White "Arda, Cagil Irmak"]
[Black "Anacoglu, Cisel"]
[Result "1-0"]
[ECO "C88"]
[WhiteElo "2069"]
[BlackElo "1973"]
[Annotator "NA"]
[PlyCount "117"]
[EventDate "2019.06.24"]
[EventType "schev"]
[EventCountry "TUR"]
[SourceTitle "playchess.com"]
[Source "ChessBase"]
[SourceQuality "1"]
[TimeControl "5400+30"]

1. e4 {[%emt 0:00:30]} e5 {[%emt 0:00:30]} 2. Nf3 {[%emt 0:00:00]} Nc6 {[%emt 0:00:00]} 3. Bb5 {[%emt 0:00:00]} a6 {[%emt 0:00:00]} 4. Ba4 {[%emt 0:00:30]} Nf6 {[%emt 0:00:00]} 5. O-O {[%emt 0:00:00]} Be7 {[%emt 0:00:00]} 6. Re1 {[%emt 0:00:00]} b5 {[%emt 0:00:30]} 7. Bb3 {[%emt 0:00:30]} O-O {[%emt 0:00:00]} 8. a4 {[%emt 0:00:00]} b4 {[%emt 0:00:00]} 9. d3 {[%emt 0:01:00]} d6 {[%emt 0:00:30]} 10. h3 {[%emt 0:03:30]} h6 {[%emt 0:04:30]} 11. Nbd2 {[%emt 0:01:30]} Na5 {[%emt 0:00:30]} 12. Ba2 {[%emt 0:03:30]} c5 {[%emt 0:05:30]} 13. Nc4 {[%emt 0:04:30]} Nxc4 {[%emt 0:01:30]} 14. Bxc4 {[%emt 0:00:30]} Be6 {[%emt 0:00:30]} 15. b3 {[%emt 0:06:30]} Nd7 {[%emt 0:04:30]} 16. Nh2 {[%emt 0:07:30]} Bg5 {[%emt 0:03:30]} 17. Bxe6 {[%emt 0:04:30]} fxe6 {[%emt 0:00:30]} 18. Qg4 {[%emt 0:00:00]} Qe7 {[%emt 0:08:30]} 19. Bxg5 {[%emt 0:03:00]} hxg5 {[%emt 0:00:00]} 20. Nf3 {[%emt 0:01:30]} Rf4 {[%emt 0:01:00]} 21. Qxg5 {[%emt 0:02:30]} Qf7 {[%emt 0:00:30]} 22. Re2 {[%emt 0:01:30]} Rf8 {[%emt 0:04:30]} 23. Rf1 {[%emt 0:02:30]} Nf6 {[%emt 0:00:30]} 24. Nh2 {[%emt 0:04:30]} Nh7 {[%emt 0:04:30]} 25. Qg3 {[%emt 0:00:30]} Qh5 {[%emt 0:03:30]} 26. Ng4 {[%emt 0:14:30]} Ng5 {[%emt 0:05:30]} 27. f3 {[%emt 0:00:30]} Nf7 {[%emt 0:00:30]} 28. Qe1 {[%emt 0:00:30]} Nh8 {[%emt 0:02:30]} 29. Ref2 {[%emt 0:01:30]} Ng6 {[%emt 0:02:30]} 30. g3 {[%emt 0:02:30]} R4f7 {[%emt 0:00:30]} 31. Kg2 {[%emt 0:01:30]} Ne7 {[%emt 0:03:30]} 32. Qe2 {[%emt 0:07:30]} Kh8 {[%emt 0:01:30]} 33. Qd2 {[%emt 0:00:30]} g5 {[%emt 0:04:30]} 34. c3 {[%emt 0:07:30]} a5 {[%emt 0:01:30]} 35. Qc1 {[%emt 0:01:04]} Rh7 {[%emt 0:09:30]} 36. Rh1 {[%emt 0:00:29]} Nc6 {[%emt 0:00:30]} 37. h4 {[%emt 0:05:08]} bxc3 {[%emt 0:00:30]} 38. Rff1 {[%emt 0:01:05]} gxh4 {[%emt 0:06:30]} 39. Rxh4 {[%emt 0:00:29]} Qg6 {[%emt 0:01:30]} 40. Rxh7+ {[%emt 0:01:03]} Kxh7 {[%emt 0:00:00]} 41. Rh1+ {[%emt 0:00:27]} Kg8 {[%emt 0:00:00]} 42. Nh6+ {[%emt 0:09:15]} Kg7 {[%emt 0:00:00]} 43. Rh4 {[%emt 0:00:28]} Qf6 {[%emt 0:01:00]} 44. Rg4+ {[%emt 0:00:59]} Kh7 {[%emt 0:00:00]} 45. Nf5 {[%emt 0:01:23]} exf5 {[%emt 0:00:00]} 46. Qh1+ {[%emt 0:00:02]} Qh6 {[%emt 0:00:30]} 47. Rh4 {[%emt 0:00:05]} Rf6 {[%emt 0:00:00]} 48. Rxh6+ {[%emt 0:01:14]} Rxh6 {[%emt 0:00:00]} 49. Qc1 {[%emt 0:00:04]} fxe4 {[%emt 0:00:30]} 50. dxe4 {[%emt 0:00:07]} Rf6 {[%emt 0:03:30]} 51. Qxc3 {[%emt 0:00:20]} Rf8 {[%emt 0:00:30]} 52. Qd2 {[%emt 0:01:16]} Rf6 {[%emt 0:00:30]} 53. f4 {[%emt 0:03:03]} Nd4 {[%emt 0:01:30]} 54. fxe5 {[%emt 0:00:26]} dxe5 {[%emt 0:00:30]} 55. Qxa5 {[%emt 0:00:12]} Nxb3 {[%emt 0:00:30]} 56. Qc7+ {[%emt 0:00:03]} Kg6 {[%emt 0:00:00]} 57. Qxe5 {[%emt 0:00:13]} c4 {[%emt 0:00:00]} 58. Qe8+ {[%emt 0:00:05]} Kg7 {[%emt 0:00:30]} 59. Qb5 {[%emt 0:00:13]} 1-0

[Event "Mentese WGM 2019"]
[Site "Mentese"]
[Date "2019.06.24"]
[Round "2.5"]
[White "Atalik, Ekaterina"]
[Black "Aydin, Gulenay"]
[Result "1-0"]
[ECO "E60"]
[WhiteElo "2452"]
[BlackElo "1967"]
[Annotator "ChessBase"]
[PlyCount "85"]
[EventDate "2019.06.24"]
[EventType "schev"]
[EventCountry "TUR"]
[SourceTitle "playchess.com"]
[Source "ChessBase"]
[SourceQuality "1"]
[TimeControl "5400+30"]

1. d4 {[%emt 0:00:30]} Nf6 {[%emt 0:00:30]} 2. Nf3 {[%emt 0:00:00]} g6 {[%emt 0:00:00]} 3. g3 {[%emt 0:00:00]} Bg7 {[%emt 0:00:00]} 4. Bg2 {[%emt 0:00:30]} O-O {[%emt 0:00:00]} 5. O-O {[%emt 0:00:00]} d6 {[%emt 0:00:00]} 6. b3 {[%emt 0:00:00]} c6 {[%emt 0:00:30]} 7. Bb2 {[%emt 0:00:30]} Qa5 {[%emt 0:02:30]} 8. c4 {[%emt 0:02:30]} Qh5 {[%emt 0:00:30]} 9. Nbd2 {[%emt 0:04:30]} Bg4 {[%emt 0:00:30]} 10. Re1 {[%emt 0:02:30]} Re8 {[%emt 0:00:00]} 11. e4 {[%emt 0:06:30]} Nfd7 {[%emt 0:11:00]} 12. Qc2 {[%emt 0:04:30]} e5 {[%emt 0:02:30]} 13. dxe5 {[%emt 0:05:30]} dxe5 {[%emt 0:03:30]} 14. h4 {[%emt 0:00:30]} Na6 {[%emt 0:09:30]} 15. Nh2 {[%emt 0:02:30]} Rad8 {[%emt 0:05:30]} 16. Ndf1 {[%emt 0:02:30]} Bh6 {[%emt 0:06:30]} 17. Ne3 {[%emt 0:04:30]} Bxe3 {[%emt 0:02:30]} 18. Rxe3 {[%emt 0:00:30]} Ndc5 {[%emt 0:09:30]} 19. Qc3 {[%emt 0:06:30]} Rd4 {[%emt 0:07:30]} 20. f3 {[%emt 0:05:30]} Be6 {[%emt 0:05:30]} 21. Bf1 {[%emt 0:03:30]} Red8 {[%emt 0:05:30]} 22. Qe1 {[%emt 0:03:30]} R4d7 {[%emt 0:09:17]} 23. g4 {[%emt 0:01:30]} Qh6 {[%emt 0:00:23]} 24. g5 {[%emt 0:04:30]} Qf8 {[%emt 0:03:58]} 25. Bxe5 {[%emt 0:00:30]} Nd3 {[%emt 0:02:16]} 26. Bxd3 {[%emt 0:00:30]} Rxd3 {[%emt 0:00:02]} 27. Rxd3 {[%emt 0:02:30]} Rxd3 {[%emt 0:00:03]} 28. Bg3 {[%emt 0:01:30]} Qd8 {[%emt 0:02:31]} 29. Bf2 {[%emt 0:04:30]} b6 {[%emt 0:01:57]} 30. Qc1 {[%emt 0:08:30]} Qd6 {[%emt 0:01:37]} 31. Kg2 {[%emt 0:04:30]} Bc8 {[%emt 0:01:33]} 32. Nf1 {[%emt 0:02:27]} Qd7 {[%emt 0:01:58]} 33. Bg3 {[%emt 0:00:59]} Nc5 {[%emt 0:00:57]} 34. Qf4 {[%emt 0:00:52]} Qh3+ {[%emt 0:01:27]} 35. Kg1 {[%emt 0:01:22]} Ne6 {[%emt 0:03:02]} 36. Qf6 {[%emt 0:01:57]} Bd7 {[%emt 0:01:24]} 37. Be5 {[%emt 0:02:11]} Kf8 {[%emt 0:00:16]} 38. Qh8+ {[%emt 0:00:30]} Ke7 {[%emt 0:00:02]} 39. Bf6+ {[%emt 0:00:46]} Kd6 {[%emt 0:00:03]} 40. Qb8+ {[%emt 0:00:34]} Kc5 {[%emt 0:00:24]} 41. Qe5+ {[%emt 0:00:35]} Kb4 {[%emt 0:00:48]} 42. a3+ {[%emt 0:00:24]} Kxb3 {[%emt 0:00:03]} 43. Qb2+ {[%emt 0:00:06]} 1-0

[Event "Mentese WGM 2019"]
[Site "Mentese"]
[Date "2019.06.25"]
[Round "3.1"]
[White "Rakhmangulova, Anastasiya"]
[Black "Khomeriki, Nino"]
[Result "0-1"]
[ECO "C55"]
[WhiteElo "2217"]
[BlackElo "2313"]
[Annotator "ChessBase"]
[PlyCount "74"]
[EventDate "2019.06.24"]
[EventType "schev"]
[EventCountry "TUR"]
[SourceTitle "playchess.com"]
[Source "ChessBase"]
[SourceQuality "1"]
[TimeControl "5400+30"]

1. e4 {[%emt 0:00:30]} e5 {[%emt 0:00:30]} 2. Nf3 {[%emt 0:00:00]} Nc6 {[%emt 0:00:00]} 3. Bc4 {[%emt 0:00:00]} Nf6 {[%emt 0:00:00]} 4. d3 {[%emt 0:00:00]} Be7 {[%emt 0:00:00]} 5. O-O {[%emt 0:00:00]} O-O {[%emt 0:00:00]} 6. Bb3 {[%emt 0:00:00]} a5 {[%emt 0:00:30]} 7. c3 {[%emt 0:00:00]} d5 {[%emt 0:01:30]} 8. Nbd2 {[%emt 0:02:30]} dxe4 {[%emt 0:01:30]} 9. dxe4 {[%emt 0:01:30]} Bc5 {[%emt 0:00:00]} 10. Ba4 {[%emt 0:02:30]} Qe7 {[%emt 0:04:00]} 11. Qe2 {[%emt 0:23:30]} Bd7 {[%emt 0:02:30]} 12. Nc4 {[%emt 0:03:30]} h6 {[%emt 0:03:30]} 13. Ne3 {[%emt 0:05:30]} Rfe8 {[%emt 0:02:30]} 14. Re1 {[%emt 0:13:30]} Nb8 {[%emt 0:10:30]} 15. Bxd7 {[%emt 0:07:30]} Nbxd7 {[%emt 0:00:30]} 16. Nf5 {[%emt 0:00:30]} Qe6 {[%emt 0:01:30]} 17. Bxh6 {[%emt 0:08:30]} gxh6 {[%emt 0:07:30]} 18. Nxh6+ {[%emt 0:00:30]} Kf8 {[%emt 0:00:00]} 19. Ng5 {[%emt 0:01:30]} Qa6 {[%emt 0:01:00]} 20. Qf3 {[%emt 0:01:30]} Ke7 {[%emt 0:06:30]} 21. Rad1 {[%emt 0:12:57]} Kd8 {[%emt 0:02:30]} 22. Rd2 {[%emt 0:02:00]} Kc8 {[%emt 0:02:30]} 23. Qf5 {[%emt 0:00:09]} Re7 {[%emt 0:02:30]} 24. Ngxf7 {[%emt 0:05:59]} Kb8 {[%emt 0:01:30]} 25. g4 {[%emt 0:00:12]} Ka7 {[%emt 0:04:30]} 26. g5 {[%emt 0:01:12]} Rf8 {[%emt 0:00:30]} 27. gxf6 {[%emt 0:05:45]} Rexf7 {[%emt 0:00:30]} 28. Nxf7 {[%emt 0:01:20]} Rxf7 {[%emt 0:00:00]} 29. Ree2 {[%emt 0:01:22]} Nxf6 {[%emt 0:07:00]} 30. Qxe5 {[%emt 0:00:05]} Qb6 {[%emt 0:00:30]} 31. Qf5 {[%emt 0:00:52]} Rg7+ {[%emt 0:03:30]} 32. Kh1 {[%emt 0:00:03]} Ng4 {[%emt 0:01:30]} 33. Rd5 {[%emt 0:00:57]} Qh6 {[%emt 0:01:30]} 34. f4 {[%emt 0:00:04]} Qh3 {[%emt 0:02:30]} 35. Rg2 {[%emt 0:00:55]} Qe3 {[%emt 0:00:30]} 36. Rd1 {[%emt 0:00:32]} Nf2+ {[%emt 0:00:30]} 37. Rxf2 {[%emt 0:00:13]} Qxf2 {[%emt 0:00:00]} 0-1

[Event "Mentese WGM 2019"]
[Site "Mentese"]
[Date "2019.06.25"]
[Round "3.2"]
[White "Zubova, Mariya"]
[Black "Dimitrijevic, Aleksandra"]
[Result "1/2-1/2"]
[ECO "B07"]
[WhiteElo "2164"]
[BlackElo "2190"]
[Annotator "ChessBase"]
[PlyCount "67"]
[EventDate "2019.06.24"]
[EventType "schev"]
[EventCountry "TUR"]
[SourceTitle "playchess.com"]
[Source "ChessBase"]
[SourceQuality "1"]
[TimeControl "5400+30"]

1. e4 {[%emt 0:00:30]} d6 {[%emt 0:00:30]} 2. d4 {[%emt 0:00:00]} Nf6 {[%emt 0:00:30]} 3. Nc3 {[%emt 0:00:00]} c6 {[%emt 0:00:30]} 4. Be3 {[%emt 0:01:30]} Ng4 {[%emt 0:03:30]} 5. Bg5 {[%emt 0:03:30]} Qb6 {[%emt 0:07:30]} 6. Rb1 {[%emt 0:22:30]} e5 {[%emt 0:04:30]} 7. Nf3 {[%emt 0:00:30]} f6 {[%emt 0:09:30]} 8. Bc1 {[%emt 0:00:30]} g6 {[%emt 0:06:30]} 9. Bc4 {[%emt 0:01:30]} Qc7 {[%emt 0:03:30]} 10. a4 {[%emt 0:04:30]} a6 {[%emt 0:01:30]} 11. Ra1 {[%emt 0:02:30]} b6 {[%emt 0:03:30]} 12. O-O {[%emt 0:04:30]} Nh6 {[%emt 0:03:30]} 13. dxe5 {[%emt 0:04:30]} dxe5 {[%emt 0:01:30]} 14. Be3 {[%emt 0:00:00]} a5 {[%emt 0:05:30]} 15. h3 {[%emt 0:08:00]} Nf7 {[%emt 0:11:30]} 16. Nd2 {[%emt 0:05:30]} Ba6 {[%emt 0:09:30]} 17. Qe2 {[%emt 0:08:30]} Bxc4 {[%emt 0:03:30]} 18. Nxc4 {[%emt 0:07:30]} Nd7 {[%emt 0:00:30]} 19. f4 {[%emt 0:02:30]} Bg7 {[%emt 0:01:30]} 20. Rad1 {[%emt 0:03:27]} exf4 {[%emt 0:05:26]} 21. Bxf4 {[%emt 0:01:18]} Nde5 {[%emt 0:00:12]} 22. Bxe5 {[%emt 0:04:19]} Nxe5 {[%emt 0:00:17]} 23. Nxe5 {[%emt 0:03:40]} Qxe5 {[%emt 0:01:18]} 24. Qc4 {[%emt 0:00:08]} Qc5+ {[%emt 0:00:40]} 25. Qxc5 {[%emt 0:00:05]} bxc5 {[%emt 0:00:03]} 26. Rd6 {[%emt 0:00:25]} Rc8 {[%emt 0:00:06]} 27. Rfd1 {[%emt 0:04:12]} O-O {[%emt 0:01:31]} 28. Rd7 {[%emt 0:00:51]} f5 {[%emt 0:00:08]} 29. exf5 {[%emt 0:03:35]} Rxf5 {[%emt 0:00:13]} 30. Ne4 {[%emt 0:01:22]} Bd4+ {[%emt 0:02:52]} 31. R7xd4 {[%emt 0:01:21]} cxd4 {[%emt 0:00:07]} 32. Nd6 {[%emt 0:00:02]} Rd8 {[%emt 0:01:19]} 33. Nxf5 {[%emt 0:00:09]} gxf5 {[%emt 0:00:04]} 34. Kf2 {[%emt 0:00:53]} 1/2-1/2

[Event "Mentese WGM 2019"]
[Site "Mentese"]
[Date "2019.06.25"]
[Round "3.3"]
[White "Novikova, Margarita"]
[Black "Arda, Cagil Irmak"]
[Result "1/2-1/2"]
[ECO "D03"]
[WhiteElo "2020"]
[BlackElo "2069"]
[Annotator "NA"]
[PlyCount "64"]
[EventDate "2019.06.24"]
[EventType "schev"]
[EventCountry "TUR"]
[SourceTitle "playchess.com"]
[Source "ChessBase"]
[SourceQuality "1"]
[TimeControl "5400+30"]

1. d4 {[%emt 0:00:30]} Nf6 {[%emt 0:00:30]} 2. Nf3 {[%emt 0:00:00]} d5 {[%emt 0:00:30]} 3. Bg5 {[%emt 0:02:00]} e6 {[%emt 0:00:30]} 4. e3 {[%emt 0:00:30]} c5 {[%emt 0:00:30]} 5. c3 {[%emt 0:01:30]} Nc6 {[%emt 0:00:30]} 6. Nbd2 {[%emt 0:01:30]} Be7 {[%emt 0:03:30]} 7. Bd3 {[%emt 0:01:30]} b6 {[%emt 0:09:30]} 8. O-O {[%emt 0:02:30]} Bb7 {[%emt 0:02:30]} 9. a3 {[%emt 0:06:30]} O-O {[%emt 0:16:30]} 10. b4 {[%emt 0:09:30]} h6 {[%emt 0:05:30]} 11. Bh4 {[%emt 0:07:30]} Nd7 {[%emt 0:02:30]} 12. Bg3 {[%emt 0:05:30]} Re8 {[%emt 0:02:30]} 13. b5 {[%emt 0:02:30]} Na5 {[%emt 0:01:30]} 14. Ne5 {[%emt 0:01:30]} cxd4 {[%emt 0:05:30]} 15. cxd4 {[%emt 0:05:30]} Nxe5 {[%emt 0:01:30]} 16. Bxe5 {[%emt 0:00:30]} Rc8 {[%emt 0:01:30]} 17. Qg4 {[%emt 0:10:30]} Bf8 {[%emt 0:01:30]} 18. Rac1 {[%emt 0:08:30]} Qg5 {[%emt 0:05:30]} 19. Rxc8 {[%emt 0:05:30]} Rxc8 {[%emt 0:03:30]} 20. Qe2 {[%emt 0:00:30]} Bxa3 {[%emt 0:07:30]} 21. f4 {[%emt 0:01:30]} Qe7 {[%emt 0:01:30]} 22. f5 {[%emt 0:02:30]} exf5 {[%emt 0:00:30]} 23. Rxf5 {[%emt 0:03:30]} Rc1+ {[%emt 0:02:30]} 24. Nf1 {[%emt 0:00:30]} Bc8 {[%emt 0:02:30]} 25. Qg4 {[%emt 0:09:26]} f6 {[%emt 0:02:59]} 26. Bf4 {[%emt 0:04:49]} Bxf5 {[%emt 0:06:05]} 27. Bxf5 {[%emt 0:01:29]} Bd6 {[%emt 0:06:22]} 28. Bxh6 {[%emt 0:01:00]} Kf8 {[%emt 0:00:40]} 29. Be6 {[%emt 0:00:35]} Qc7 {[%emt 0:02:06]} 30. g3 {[%emt 0:01:42]} gxh6 {[%emt 0:04:28]} 31. Qg8+ {[%emt 0:00:09]} Ke7 {[%emt 0:00:02]} 32. Qf7+ {[%emt 0:00:16]} Kd8 {[%emt 0:00:06]} 1/2-1/2

[Event "Mentese WGM 2019"]
[Site "Mentese"]
[Date "2019.06.25"]
[Round "3.5"]
[White "Aydin, Gulenay"]
[Black "Doluhanova, Evgeniya"]
[Result "1-0"]
[ECO "C49"]
[WhiteElo "1967"]
[BlackElo "2319"]
[Annotator "ChessBase"]
[PlyCount "143"]
[EventDate "2019.06.24"]
[EventType "schev"]
[EventCountry "TUR"]
[SourceTitle "playchess.com"]
[Source "ChessBase"]
[SourceQuality "1"]
[TimeControl "5400+30"]

1. e4 {[%emt 0:00:30]} e5 {[%emt 0:00:30]} 2. Nf3 {[%emt 0:00:00]} Nc6 {[%emt 0:00:00]} 3. Nc3 {[%emt 0:00:00]} Nf6 {[%emt 0:00:00]} 4. Bb5 {[%emt 0:00:00]} Bb4 {[%emt 0:00:00]} 5. O-O {[%emt 0:00:00]} O-O {[%emt 0:00:00]} 6. d3 {[%emt 0:00:30]} Bxc3 {[%emt 0:00:30]} 7. bxc3 {[%emt 0:00:00]} d6 {[%emt 0:00:30]} 8. Bg5 {[%emt 0:00:00]} h6 {[%emt 0:00:30]} 9. Bh4 {[%emt 0:01:30]} Qe7 {[%emt 0:00:00]} 10. Re1 {[%emt 0:01:30]} a6 {[%emt 0:04:00]} 11. Bxc6 {[%emt 0:09:30]} bxc6 {[%emt 0:00:30]} 12. d4 {[%emt 0:05:30]} Rb8 {[%emt 0:02:30]} 13. Qd3 {[%emt 0:07:30]} Qe6 {[%emt 0:03:30]} 14. Bxf6 {[%emt 0:05:30]} Qxf6 {[%emt 0:02:30]} 15. Rab1 {[%emt 0:13:30]} Rxb1 {[%emt 0:07:30]} 16. Rxb1 {[%emt 0:00:30]} Qe6 {[%emt 0:00:30]} 17. Rb2 {[%emt 0:07:30]} f6 {[%emt 0:01:30]} 18. c4 {[%emt 0:06:30]} Qg4 {[%emt 0:09:30]} 19. d5 {[%emt 0:06:30]} f5 {[%emt 0:05:30]} 20. Nd2 {[%emt 0:03:30]} c5 {[%emt 0:18:30]} 21. Rb1 {[%emt 0:03:30]} Qf4 {[%emt 0:11:30]} 22. f3 {[%emt 0:05:30]} h5 {[%emt 0:01:30]} 23. Rf1 {[%emt 0:02:30]} h4 {[%emt 0:02:30]} 24. Qe2 {[%emt 0:03:43]} Qg5 {[%emt 0:10:00]} 25. Rf2 {[%emt 0:06:02]} Bd7 {[%emt 0:02:37]} 26. f4 {[%emt 0:03:38]} exf4 {[%emt 0:06:56]} 27. e5 {[%emt 0:01:10]} dxe5 {[%emt 0:00:39]} 28. Qxe5 {[%emt 0:01:33]} Re8 {[%emt 0:01:31]} 29. Qxc7 {[%emt 0:04:06]} f3 {[%emt 0:06:17]} 30. Nxf3 {[%emt 0:02:31]} Qc1+ {[%emt 0:00:09]} 31. Rf1 {[%emt 0:00:08]} Qe3+ {[%emt 0:00:04]} 32. Kh1 {[%emt 0:00:50]} Re7 {[%emt 0:03:07]} 33. d6 {[%emt 0:00:31]} Rf7 {[%emt 0:00:13]} 34. Qd8+ {[%emt 0:00:30]} Qe8 {[%emt 0:00:06]} 35. Qxh4 {[%emt 0:00:00]} Rf6 {[%emt 0:00:12]} 36. Qf4 {[%emt 0:01:10]} Qe4 {[%emt 0:01:46]} 37. Qd2 {[%emt 0:00:30]} Qxc4 {[%emt 0:00:14]} 38. Rd1 {[%emt 0:00:29]} Qxa2 {[%emt 0:00:44]} 39. Ne5 {[%emt 0:00:25]} Qe6 {[%emt 0:00:44]} 40. Qd5 {[%emt 0:00:27]} Qxd5 {[%emt 0:00:36]} 41. Rxd5 {[%emt 0:00:02]} Be6 {[%emt 0:00:31]} 42. d7 {[%emt 0:00:40]} Bxd7 {[%emt 0:00:03]} 43. Nxd7 {[%emt 0:00:12]} Re6 {[%emt 0:00:04]} 44. Kg1 {[%emt 0:00:51]} c4 {[%emt 0:00:05]} 45. Rxf5 {[%emt 0:00:45]} Rd6 {[%emt 0:01:29]} 46. Ne5 {[%emt 0:00:34]} Rd5 {[%emt 0:00:04]} 47. h3 {[%emt 0:00:34]} a5 {[%emt 0:00:10]} 48. g4 {[%emt 0:00:10]} Rc5 {[%emt 0:01:02]} 49. Nf3 {[%emt 0:00:53]} Rxf5 {[%emt 0:00:08]} 50. gxf5 {[%emt 0:00:01]} a4 {[%emt 0:00:07]} 51. c3 {[%emt 0:00:23]} a3 {[%emt 0:00:03]} 52. Nd4 {[%emt 0:00:13]} a2 {[%emt 0:00:02]} 53. Nc2 {[%emt 0:00:09]} Kf7 {[%emt 0:00:04]} 54. Kf2 {[%emt 0:00:19]} Kf6 {[%emt 0:00:03]} 55. Ke3 {[%emt 0:00:05]} Ke5 {[%emt 0:00:10]} 56. Na1 {[%emt 0:01:57]} Kxf5 {[%emt 0:00:04]} 57. Kd4 {[%emt 0:00:04]} Kf4 {[%emt 0:00:19]} 58. Kxc4 {[%emt 0:00:06]} Kg3 {[%emt 0:00:02]} 59. Kd5 {[%emt 0:01:02]} Kxh3 {[%emt 0:00:04]} 60. c4 {[%emt 0:00:02]} g5 {[%emt 0:00:10]} 61. c5 {[%emt 0:00:10]} g4 {[%emt 0:00:02]} 62. c6 {[%emt 0:00:03]} g3 {[%emt 0:00:01]} 63. c7 {[%emt 0:00:07]} g2 {[%emt 0:00:02]} 64. c8=Q+ {[%emt 0:00:05]} Kh2 {[%emt 0:00:04]} 65. Qh8+ {[%emt 0:01:04]} Kg3 {[%emt 0:00:09]} 66. Qg7+ {[%emt 0:00:06]} Kh2 {[%emt 0:00:07]} 67. Qh6+ {[%emt 0:00:09]} Kg3 {[%emt 0:00:08]} 68. Qg5+ {[%emt 0:00:05]} Kh2 {[%emt 0:00:22]} 69. Qh4+ {[%emt 0:00:13]} Kg1 {[%emt 0:00:04]} 70. Ke4 {[%emt 0:03:05]} Kf1 {[%emt 0:00:03]} 71. Qf4+ {[%emt 0:00:18]} Ke1 {[%emt 0:00:04]} 72. Kd3 {[%emt 0:01:11]} 1-0

[Event "Mentese WGM 2019"]
[Site "Mentese"]
[Date "2019.06.24"]
[Round "4.1"]
[White "Dimitrijevic, Aleksandra"]
[Black "Rakhmangulova, Anastasiya"]
[Result "1/2-1/2"]
[ECO "D02"]
[WhiteElo "2190"]
[BlackElo "2217"]
[Annotator "NA"]
[PlyCount "71"]
[EventDate "2019.06.24"]
[EventType "schev"]
[EventCountry "TUR"]
[SourceTitle "playchess.com"]
[Source "ChessBase"]
[SourceQuality "1"]
[TimeControl "5400+30"]

1. d4 {[%emt 0:00:30]} d5 {[%emt 0:00:30]} 2. Bf4 {[%emt 0:00:00]} Nf6 {[%emt 0:00:00]} 3. Nf3 {[%emt 0:00:00]} c5 {[%emt 0:01:00]} 4. e3 {[%emt 0:00:30]} Nc6 {[%emt 0:00:00]} 5. c3 {[%emt 0:00:30]} e6 {[%emt 0:00:00]} 6. Bd3 {[%emt 0:03:30]} Bd6 {[%emt 0:00:30]} 7. Bxd6 {[%emt 0:00:30]} Qxd6 {[%emt 0:00:00]} 8. Nbd2 {[%emt 0:00:30]} O-O {[%emt 0:00:00]} 9. O-O {[%emt 0:00:00]} e5 {[%emt 0:00:30]} 10. dxe5 {[%emt 0:11:00]} Nxe5 {[%emt 0:00:00]} 11. Nxe5 {[%emt 0:00:30]} Qxe5 {[%emt 0:00:00]} 12. h3 {[%emt 0:00:00]} b6 {[%emt 0:00:30]} 13. Nf3 {[%emt 0:00:00]} Qe7 {[%emt 0:00:30]} 14. Qe2 {[%emt 0:02:30]} a6 {[%emt 0:10:30]} 15. a4 {[%emt 0:00:30]} Bb7 {[%emt 0:00:30]} 16. Rab1 {[%emt 0:12:30]} Ne4 {[%emt 0:08:30]} 17. Rfc1 {[%emt 0:02:30]} f5 {[%emt 0:08:30]} 18. c4 {[%emt 0:02:30]} dxc4 {[%emt 0:00:30]} 19. Bxc4+ {[%emt 0:00:30]} Kh8 {[%emt 0:00:30]} 20. Rd1 {[%emt 0:00:00]} Bc6 {[%emt 0:05:30]} 21. Ra1 {[%emt 0:02:00]} Qe8 {[%emt 0:03:30]} 22. Bd5 {[%emt 0:17:30]} Bxa4 {[%emt 0:03:30]} 23. Bxa8 {[%emt 0:00:30]} Bxd1 {[%emt 0:01:30]} 24. Qxa6 {[%emt 0:00:30]} Bxf3 {[%emt 0:02:30]} 25. gxf3 {[%emt 0:00:30]} Qg6+ {[%emt 0:01:30]} 26. Kf1 {[%emt 0:06:30]} Ng5 {[%emt 0:00:30]} 27. f4 {[%emt 0:00:30]} Ne4 {[%emt 0:13:30]} 28. Bxe4 {[%emt 0:00:30]} fxe4 {[%emt 0:00:30]} 29. Qb7 {[%emt 0:00:30]} Qf5 {[%emt 0:06:30]} 30. Ra8 {[%emt 0:00:00]} Qxh3+ {[%emt 0:01:30]} 31. Ke1 {[%emt 0:00:00]} Qf5 {[%emt 0:01:30]} 32. Qxe4 {[%emt 0:00:30]} Qf6 {[%emt 0:07:30]} 33. Qc6 {[%emt 0:01:30]} Kg8 {[%emt 0:00:30]} 34. Qd5+ {[%emt 0:00:30]} Kh8 {[%emt 0:00:30]} 35. Qc6 {[%emt 0:00:30]} Kg8 {[%emt 0:00:30]} 36. Qd5+ {[%emt 0:00:30]} 1/2-1/2

[Event "Mentese WGM 2019"]
[Site "Mentese"]
[Date "2019.06.24"]
[Round "4.2"]
[White "Arda, Cagil Irmak"]
[Black "Zubova, Mariya"]
[Result "1-0"]
[ECO "C47"]
[WhiteElo "2069"]
[BlackElo "2164"]
[Annotator "NA"]
[PlyCount "35"]
[EventDate "2019.06.24"]
[EventType "schev"]
[EventCountry "TUR"]
[SourceTitle "playchess.com"]
[Source "ChessBase"]
[SourceQuality "1"]
[TimeControl "5400+30"]

1. e4 {[%emt 0:00:30]} e5 {[%emt 0:00:30]} 2. Nf3 {[%emt 0:00:00]} Nc6 {[%emt 0:00:00]} 3. Nc3 {[%emt 0:00:00]} Nf6 {[%emt 0:00:00]} 4. d4 {[%emt 0:00:00]} exd4 {[%emt 0:01:30]} 5. Nxd4 {[%emt 0:00:00]} Bb4 {[%emt 0:01:30]} 6. Nxc6 {[%emt 0:00:30]} bxc6 {[%emt 0:00:30]} 7. Bd3 {[%emt 0:00:00]} h6 {[%emt 0:02:30]} 8. O-O {[%emt 0:00:00]} O-O {[%emt 0:00:00]} 9. h3 {[%emt 0:00:30]} Re8 {[%emt 0:01:00]} 10. Qf3 {[%emt 0:05:30]} d6 {[%emt 0:09:30]} 11. Ne2 {[%emt 0:09:30]} Nd7 {[%emt 0:04:30]} 12. Qg3 {[%emt 0:05:30]} Qf6 {[%emt 0:01:30]} 13. c3 {[%emt 0:03:30]} Bc5 {[%emt 0:00:30]} 14. Nf4 {[%emt 0:03:30]} Ne5 {[%emt 0:02:30]} 15. Bc2 {[%emt 0:01:30]} Ba6 {[%emt 0:01:30]} 16. Re1 {[%emt 0:01:30]} Rad8 {[%emt 0:07:30]} 17. b4 {[%emt 0:06:30]} Bb6 {[%emt 0:00:30]} 18. a4 {[%emt 0:00:30]} 1-0